fUSD/lending_fUSD_20240301
["ID","MTS","AMOUNT","RATE_DAILY","PERIOD"]
[316011515,1709325079833,-500.0,0.00022356,2]
[316011516,1709325079843,-805.74,0.00022356,2]
[316011517,1709325079852,-500.0,0.00022356,2]
[316011518,1709325079862,-447.90020269,0.00022356,2]
[316011519,1709325079871,-762.15,0.00022356,2]
[316011520,1709325079881,-609.16,0.00022356,2]
[316011521,1709325079890,-500.0,0.00022356,2]
[316011522,1709325079900,-500.0,0.00022356,2]
[316011523,1709325079909,-848.53,0.00022356,2]
[316011524,1709325079919,-500.0,0.00022356,2]
[316011525,1709325079928,-500.0,0.00022356,2]
[316011526,1709325079938,-500.0,0.00022356,2]
[316011527,1709325079947,-500.0,0.00022356,2]
[316011528,1709325079957,-500.0,0.00022356,2]
[316011529,1709325079966,-507.2,0.00022356,2]
[316011530,1709325079976,-1065.74,0.00022356,2]
[316011531,1709325079985,-575.42,0.00022356,2]
[316011532,1709325079998,-1592.13,0.00022356,2]
[316011533,1709325080007,-500.0,0.00022356,2]
[316011534,1709325080017,-500.0,0.00022356,2]
[316011535,1709325080026,-500.0,0.00022356,2]
[316011536,1709325080038,-865.42,0.00022356,2]
[316011537,1709325080048,-500.0,0.00022356,2]
[316011538,1709325080057,-500.0,0.00022356,2]
[316011539,1709325080067,-500.0,0.00022356,2]
[316011540,1709325080078,-826.68,0.00022356,2]
[316011541,1709325080087,-500.0,0.00022356,2]
[316011542,1709325080098,-237.63013602,0.00022356,2]
[316011543,1709325080108,-500.0,0.00022356,2]
[316011544,1709325080118,-500.0,0.00022356,2]
[316011545,1709325080129,-500.0,0.00022356,2]
[316011546,1709325080140,-500.0,0.00022356,2]
[316011547,1709325080151,-553.43,0.00022356,2]
[316011548,1709325080162,-354.49,0.00022356,2]
[316011549,1709325080172,-500.0,0.00022356,2]
[316011550,1709325080182,-1042.29,0.00022356,2]
[316011551,1709325080193,-500.0,0.00022356,2]
[316011552,1709325080203,-500.0,0.00022356,2]
[316011553,1709325080213,-500.0,0.00022356,2]
[316011554,1709325080223,-611.07,0.00022356,2]
[316011555,1709325080233,-500.0,0.00022356,2]
[316011556,1709325080244,-512.5,0.00022356,2]
[316011557,1709325080254,-500.0,0.00022356,2]
[316011558,1709325080265,-521.03080935,0.00022356,2]
[316011559,1709325080275,-500.0,0.00022356,2]
[316011560,1709325080286,-545.12,0.00022356,2]
[316011561,1709325080296,-500.0,0.00022356,2]
[316011562,1709325080307,-500.0,0.00022356,2]
[316011563,1709325080317,-500.0,0.00022356,2]
[316011564,1709325080328,-500.0,0.00022356,2]
[316011565,1709325080338,-500.0,0.00022356,2]
[316011566,1709325080348,-500.0,0.00022356,2]
[316011567,1709325080359,-596.33973995,0.00022356,2]
[316011568,1709325080370,-500.0,0.00022356,2]
[316011569,1709325080380,-441.18,0.00022356,2]
[316011570,1709325080390,-500.0,0.00022356,2]
[316011571,1709325080400,-500.0,0.00022356,2]
[316011572,1709325080410,-500.0,0.00022356,2]
[316011573,1709325080421,-500.0,0.00022356,2]
[316011574,1709325080433,-500.0,0.00022356,2]
[316011575,1709325080447,-500.0,0.00022356,2]
[316011576,1709325080459,-1195.6,0.00022356,2]
[316011577,1709325080470,-500.0,0.00022356,2]
[316011578,1709325080481,-500.0,0.00022356,2]
[316011579,1709325080492,-500.0,0.00022356,2]
[316011580,1709325080502,-500.0,0.00022356,2]
[316011581,1709325080513,-500.0,0.00022356,2]
[316011582,1709325080524,-500.0,0.00022356,2]
[316011583,1709325080534,-500.0,0.00022356,2]
[316011584,1709325080544,-500.0,0.00022356,2]
[316011585,1709325080554,-802.71,0.00022356,2]
[316011586,1709325080564,-608.29325079,0.00022356,2]
[316011587,1709325080574,-500.0,0.00022356,2]
[316011588,1709325080584,-500.0,0.00022356,2]
[316011589,1709325080593,-500.0,0.00022356,2]
[316011590,1709325080604,-500.0,0.00022356,2]
[316011591,1709325080614,-500.0,0.00022356,2]
[316011592,1709325080624,-500.0,0.00022356,2]
[316011593,1709325080634,-500.0,0.00022356,2]
[316011594,1709325080643,-500.0,0.00022356,2]
[316011595,1709325080653,-500.0,0.00022356,2]
[316011596,1709325080664,-500.0,0.00022356,2]
[316011597,1709325080674,-500.0,0.00022356,2]
[316011598,1709325080684,-500.0,0.00022356,2]
[316011599,1709325080696,-500.0,0.00022356,2]
[316011600,1709325080706,-500.0,0.00022356,2]
[316011601,1709325080715,-500.0,0.00022356,2]
[316011602,1709325080724,-500.0,0.00022356,2]
[316011603,1709325080734,-500.0,0.00022356,2]
[316011604,1709325080743,-500.0,0.00022356,2]
[316011605,1709325080753,-500.0,0.00022356,2]
[316011606,1709325080763,-740.6,0.00022356,2]
[316011607,1709325080773,-876.19,0.00022356,2]
[316011608,1709325080782,-500.0,0.00022356,2]
[316011609,1709325080792,-500.0,0.00022356,2]
[316011610,1709325080802,-676.42,0.00022356,2]
[316011611,1709325080811,-500.0,0.00022356,2]
[316011612,1709325080821,-500.0,0.00022356,2]
[316011613,1709325080830,-500.0,0.00022356,2]
[316011614,1709325080840,-514.56,0.00022356,2]
[316011615,1709325080849,-769.11,0.00022356,2]
[316011616,1709325080858,-595.86,0.00022356,2]
[316011617,1709325080868,-500.0,0.00022356,2]
[316011618,1709325080878,-500.0,0.00022356,2]
[316011619,1709325080888,-500.0,0.00022356,2]
[316011620,1709325080898,-500.0,0.00022356,2]
[316011621,1709325080908,-500.0,0.00022356,2]
[316011622,1709325080919,-500.0,0.00022356,2]
[316011623,1709325080929,-515.51,0.00022356,2]
[316011624,1709325080939,-500.0,0.00022356,2]
[316011625,1709325080951,-599.85,0.00022356,2]
[316011626,1709325080961,-289.04449279,0.00022356,2]
[316011627,1709325080971,-500.0,0.00022356,2]
[316011628,1709325080981,-500.0,0.00022356,2]
[316011629,1709325080994,-500.0,0.00022356,2]
[316011630,1709325081004,-500.0,0.00022356,2]
[316011631,1709325081014,-500.0,0.00022356,2]
[316011632,1709325081023,-150.0,0.00022356,2]
[316011633,1709325081035,-500.0,0.00022356,2]
[316011634,1709325081045,-1494.08,0.00022356,2]
[316011635,1709325081054,-500.0,0.00022356,2]
[316011636,1709325081064,-500.0,0.00022356,2]
[316011637,1709325081077,-151.0,0.00022356,2]
[316011638,1709325081088,-500.0,0.00022356,2]
[316011639,1709325081097,-500.0,0.00022356,2]
[316011640,1709325081107,-500.0,0.00022356,2]
[316011641,1709325081117,-500.0,0.00022356,2]
[316011642,1709325081127,-645.41,0.00022356,2]
[316011643,1709325081137,-533.26216397,0.00022356,2]
[316011644,1709325081146,-500.0,0.00022356,2]
[316011645,1709325081156,-502.96,0.00022356,2]
[316011646,1709325081166,-500.0,0.00022356,2]
[316011647,1709325081176,-500.0,0.00022356,2]
[316011648,1709325081186,-500.0,0.00022356,2]
[316011649,1709325081197,-259.33,0.00022356,2]
[316011650,1709325081207,-500.0,0.00022356,2]
[316011651,1709325081217,-500.0,0.00022356,2]
[316011652,1709325081228,-500.0,0.00022356,2]
[316011653,1709325081238,-500.0,0.00022356,2]
[316011654,1709325081247,-500.0,0.00022356,2]
[316011655,1709325081257,-500.0,0.00022356,2]
[316011656,1709325081267,-1095.13,0.00022356,2]
[316011657,1709325081277,-500.0,0.00022356,2]
[316011658,1709325081286,-402.85,0.00022356,2]
[316011659,1709325081296,-500.0,0.00022356,2]
[316011660,1709325081305,-466.90799485,0.00022356,2]
[316011661,1709325081315,-637.23597159,0.00022356,2]
[316011662,1709325081325,-500.0,0.00022356,2]
[316011663,1709325081335,-505.86,0.00022356,2]
[316011664,1709325081344,-576.13,0.00022356,2]
[316011665,1709325081353,-793.28,0.00022356,2]
[316011666,1709325081363,-649.5,0.00022356,2]
[316011667,1709325081373,-500.0,0.00022356,2]
[316011668,1709325081382,-500.0,0.00022356,2]
[316011669,1709325081391,-500.0,0.00022356,2]
[316011670,1709325081401,-500.0,0.00022356,2]
[316011671,1709325081474,-807.39,0.00022356,2]
[316011672,1709325081484,-777.74,0.00022356,2]
[316011673,1709325081494,-500.0,0.00022356,2]
[316011674,1709325081504,-500.0,0.00022356,2]
[316011675,1709325081513,-5832.94,0.00022356,2]
[316011676,1709325081524,-500.0,0.00022356,2]
[316011677,1709325081533,-2556.17,0.00022356,2]
[316011678,1709325081543,-500.0,0.00022356,2]
[316011679,1709325081553,-500.0,0.00022356,2]
[316011680,1709325081563,-522.07708817,0.00022356,2]
[316011681,1709325081572,-500.0,0.00022356,2]
[316011682,1709325081582,-507.99815361,0.00022356,2]
[316011683,1709325081593,-630.96,0.00022356,2]
[316011684,1709325081602,-500.0,0.00022356,2]
[316011685,1709325081612,-500.0,0.00022356,2]
[316011686,1709325081621,-500.0,0.00022356,2]
[316011687,1709325081631,-2541.7,0.00022356,2]
[316011688,1709325081641,-717.66,0.00022356,2]
[316011689,1709325081650,-500.0,0.00022356,2]
[316011690,1709325081659,-500.0,0.00022356,2]
[316011691,1709325081669,-1190.85,0.00022356,2]
[316011692,1709325081679,-500.0,0.00022356,2]
[316011693,1709325081688,-1257.43,0.00022356,2]
[316011694,1709325081699,-500.0,0.00022356,2]
[316011695,1709325081708,-1933.92,0.00022356,2]
[316011696,1709325081748,-612.51824424,0.00022356,2]
[316011697,1709325081757,-500.0,0.00022356,2]
[316011698,1709325081766,-500.0,0.00022356,2]
[316011699,1709325081776,-6685.34,0.00022356,2]
[316011700,1709325081785,-500.0,0.00022356,2]
[316011701,1709325081794,-798.45,0.00022356,2]
[316011702,1709325081804,-495.66161949,0.00022356,2]
[316011703,1709325081813,-500.0,0.00022356,2]
[316011704,1709325081822,-833.2,0.00022356,2]
[316011705,1709325081832,-500.0,0.00022356,2]
[316011706,1709325081841,-500.0,0.00022356,2]
[316011707,1709325081851,-13127.88,0.00022356,2]
[316011708,1709325081860,-4843.16,0.00022356,2]
[316011709,1709325081870,-739.55,0.00022356,2]
[316011710,1709325081880,-500.0,0.00022356,2]
[316011711,1709325081890,-870.9,0.00022356,2]
[316011712,1709325081899,-21180.03,0.00022356,2]
[316011713,1709325081909,-2351.69,0.00022356,2]
[316011714,1709325081919,-500.0,0.00022356,2]
[316011715,1709325081928,-500.0,0.00022356,2]
[316011716,1709325081938,-23347.63,0.00022356,2]
[316011717,1709325081949,-500.0,0.00022356,2]
[316011718,1709325081958,-4956.68,0.00022356,2]
[316011719,1709325081968,-500.0,0.00022356,2]
[316011720,1709325081978,-500.0,0.00022356,2]
[316011721,1709325081988,-1558.45,0.00022356,2]
[316011722,1709325081998,-500.0,0.00022356,2]
[316011723,1709325082008,-3125.66,0.00022356,2]
[316011724,1709325082020,-500.0,0.00022356,2]
[316011725,1709325082031,-667.12,0.00022356,2]
[316011726,1709325082041,-2738.18,0.00022356,2]
[316011727,1709325082051,-500.0,0.00022356,2]
[316011728,1709325082060,-500.0,0.00022356,2]
[316011729,1709325082071,-500.0,0.00022356,2]
[316011730,1709325082081,-500.0,0.00022356,2]
[316011731,1709325082092,-833.39,0.00022356,2]
[316011732,1709325082102,-500.0,0.00022356,2]
[316011733,1709325082112,-2229.45,0.00022356,2]
[316011734,1709325082122,-610.29,0.00022356,2]
[316011735,1709325082133,-1678.54,0.00022356,2]
[316011736,1709325082143,-2098.48,0.00022356,2]
[316011737,1709325082153,-503.81,0.00022356,2]
[316011738,1709325082163,-786.34,0.00022356,2]
[316011739,1709325082172,-500.0,0.00022356,2]
[316011740,1709325082182,-500.0,0.00022356,2]
[316011741,1709325082193,-1899.02,0.00022356,2]
[316011742,1709325082203,-2418.44,0.00022356,2]
[316011743,1709325082214,-500.0,0.00022356,2]
[316011744,1709325082224,-22491.46,0.00022356,2]
[316011745,1709325082234,-1323.61,0.00022356,2]
[316011746,1709325082243,-500.0,0.00022356,2]
[316011747,1709325082253,-983.93,0.00022356,2]
[316011748,1709325082263,-1814.42,0.00022356,2]
[316011749,1709325082272,-500.0,0.00022356,2]
[316011750,1709325082287,-1115.97,0.00022356,2]
[316011751,1709325082297,-1675.44,0.00022356,2]
[316011752,1709325082306,-767.44,0.00022356,2]
[316011753,1709325082315,-500.0,0.00022356,2]
[316011754,1709325082324,-500.0,0.00022356,2]
[316011755,1709325082333,-896.73,0.00022356,2]
[316011756,1709325082342,-802.5,0.00022356,2]
[316011757,1709325082352,-500.0,0.00022356,2]
[316011758,1709325082361,-500.0,0.00022356,2]
[316011759,1709325082370,-1440.38,0.00022356,2]
[316011760,1709325082379,-500.0,0.00022356,2]
[316011761,1709325082389,-1523.08,0.00022356,2]
[316011762,1709325082398,-503.18,0.00022356,2]
[316011763,1709325082407,-1165.62,0.00022356,2]
[316011764,1709325082417,-500.0,0.00022356,2]
[316011765,1709325082426,-601.85,0.00022356,2]
[316011766,1709325082436,-1246.8,0.00022356,2]
[316011767,1709325082445,-539.77,0.00022356,2]
[316011768,1709325082455,-1621.23,0.00022356,2]
[316011769,1709325082464,-1237.56,0.00022356,2]
[316011770,1709325082473,-500.0,0.00022356,2]
[316011771,1709325082483,-1145.09,0.00022356,2]
[316011772,1709325082492,-500.0,0.00022356,2]
[316011773,1709325082503,-3124.61,0.00022356,2]
[316011774,1709325082512,-500.0,0.00022356,2]
[316011775,1709325082522,-151.0,0.00022356,7]
[316011776,1709325082531,-1329.17,0.00022356,2]
[316011777,1709325082541,-500.0,0.00022356,2]
[316011778,1709325082551,-151.0,0.00022356,7]
[316011779,1709325082562,-1000.45,0.00022356,2]
[316011780,1709325082572,-500.0,0.00022356,2]
[316011781,1709325082582,-3328.11,0.00022356,2]
[316011782,1709325082592,-500.0,0.00022356,2]
[316011783,1709325082601,-1846.84,0.00022356,2]
[316011784,1709325082610,-1629.87,0.00022356,2]
[316011785,1709325082619,-500.0,0.00022356,2]
[316011786,1709325082628,-500.0,0.00022356,2]
[316011787,1709325082638,-1049.82,0.00022356,2]
[316011788,1709325082647,-1099.37,0.00022356,2]
[316011789,1709325082657,-500.0,0.00022356,2]
[316011790,1709325082666,-530.71,0.00022356,2]
[316011791,1709325082676,-841.32,0.00022356,2]
[316011792,1709325082686,-2334.83,0.00022356,2]
[316011793,1709325082698,-668.88,0.00022356,2]
[316011794,1709325082709,-796.92,0.00022356,2]
[316011795,1709325082719,-500.0,0.00022356,2]
[316011796,1709325082730,-531.12,0.00022356,2]
[316011797,1709325082740,-816.07,0.00022356,2]
[316011798,1709325082750,-897.19,0.00022356,2]
[316011799,1709325082759,-3575.44,0.00022356,2]
[316011800,1709325082770,-500.0,0.00022356,2]
[316011801,1709325082780,-1761.64,0.00022356,2]
[316011802,1709325082790,-1692.3,0.00022356,2]
[316011803,1709325082802,-500.0,0.00022356,2]
[316011804,1709325082812,-500.0,0.00022356,2]
[316011805,1709325082823,-628.25,0.00022356,2]
[316011806,1709325082842,-647.46,0.00022356,2]
[316011807,1709325082860,-1144.26,0.00022356,2]
[316011808,1709325082870,-1413.89,0.00022356,2]
[316011809,1709325082879,-1309.85,0.00022356,2]
[316011810,1709325082888,-2454.74,0.00022356,2]
[316011811,1709325082898,-500.0,0.00022356,2]
[316011812,1709325082908,-500.0,0.00022356,2]
[316011813,1709325082918,-1110.9,0.00022356,2]
[316011814,1709325082928,-500.0,0.00022356,2]
[316011815,1709325082938,-541.55,0.00022356,2]
[316011816,1709325082950,-697.92,0.00022356,2]
[316011817,1709325082961,-2314.14,0.00022356,2]
[316011818,1709325082971,-689.43,0.00022356,2]
[316011819,1709325082981,-898.59,0.00022356,2]
[316011820,1709325082994,-705.17,0.00022356,2]
[316011821,1709325083004,-547.49,0.00022356,2]
[316011822,1709325083017,-1018.24,0.00022356,2]
[316011823,1709325083027,-500.0,0.00022356,2]
[316011824,1709325083039,-645.07,0.00022356,2]
[316011825,1709325083049,-1138.84,0.00022356,2]
[316011826,1709325083059,-13496.9,0.00022356,2]
[316011827,1709325083068,-500.0,0.00022356,2]
[316011828,1709325083078,-500.0,0.00022356,2]
[316011829,1709325083088,-1245.99,0.00022356,2]
[316011830,1709325083098,-771.59,0.00022356,2]
[316011831,1709325083107,-4551.14,0.00022356,2]
[316011832,1709325083117,-2194.49,0.00022356,2]
[316011833,1709325083127,-1300.41,0.00022356,2]
[316011834,1709325083136,-500.0,0.00022356,2]
[316011835,1709325083147,-858.27,0.00022356,2]
[316011836,1709325083156,-500.0,0.00022356,2]
[316011837,1709325083165,-1006.76,0.00022356,2]
[316011838,1709325083175,-797.83,0.00022356,2]
[316011839,1709325083185,-648.54,0.00022356,2]
[316011840,1709325083197,-500.0,0.00022356,2]
[316011841,1709325083207,-3937.49,0.00022356,2]
[316011842,1709325083216,-1738.03,0.00022356,2]
[316011843,1709325083226,-1746.33,0.00022356,2]
[316011844,1709325083236,-1501.28,0.00022356,2]
[316011845,1709325083246,-822.79,0.00022356,2]
[316011846,1709325083256,-2615.6,0.00022356,2]
[316011847,1709325083265,-500.0,0.00022356,2]
[316011848,1709325083275,-909.65,0.00022356,2]
[316011849,1709325083284,-505.22095577,0.00022356,2]
[316011850,1709325083294,-500.0,0.00022356,2]
[316011851,1709325083304,-1731.17,0.00022356,2]
[316011852,1709325083313,-500.0,0.00022356,2]
[316011853,1709325083323,-1095.16,0.00022356,2]
[316011854,1709325083332,-3436.44,0.00022356,2]
[316011855,1709325083342,-796.3,0.00022356,2]
[316011856,1709325083352,-500.0,0.00022356,2]
[316011857,1709325083361,-605.08,0.00022356,2]
[316011858,1709325083371,-1719.11,0.00022356,2]
[316011859,1709325083381,-695.81,0.00022356,2]
[316011860,1709325083391,-1649.56,0.00022356,2]
[316011861,1709325083400,-500.0,0.00022356,2]
[316011862,1709325083410,-695.1,0.00022356,2]
[316011863,1709325083420,-1849.33,0.00022356,2]
[316011864,1709325083430,-500.0,0.00022356,2]
[316011865,1709325083439,-500.0,0.00022356,2]
[316011866,1709325083453,-495.85890189,0.00022356,2]
[316011867,1709325083462,-596.04,0.00022356,2]
[316011868,1709325083472,-802.09,0.00022356,2]
[316011869,1709325083482,-914.91,0.00022356,2]
[316011870,1709325083492,-1408.66,0.00022356,2]
[316011871,1709325083502,-168.94454485,0.00022356,2]
[316011872,1709325083512,-500.0,0.00022356,2]
[316011873,1709325083522,-1096.97,0.00022356,2]
[316011874,1709325083532,-3156.86,0.00022356,2]
[316011875,1709325083542,-2515.07,0.00022356,2]
[316011876,1709325083552,-500.0,0.00022356,2]
[316011877,1709325083563,-205.004529,0.00022356,7]
[316011878,1709325083573,-500.0,0.00022356,2]
[316011879,1709325083582,-500.0,0.00022356,2]
[316011880,1709325083592,-205.004529,0.00022356,7]
[316011881,1709325083605,-216.52,0.00022356,2]
[316011882,1709325083615,-576.12,0.00022356,2]
[316011883,1709325083625,-1405.35,0.00022356,2]
[316011884,1709325083641,-205.004529,0.00022356,7]
[316011885,1709325083652,-500.0,0.00022356,2]
[316011886,1709325083662,-205.004529,0.00022356,7]
[316011887,1709325083672,-571.01,0.00022356,2]
[316011888,1709325083682,-500.0,0.00022356,2]
[316011889,1709325083691,-829.65,0.00022356,2]
[316011890,1709325083704,-1280.88,0.00022356,2]
[316011891,1709325083713,-500.0,0.00022356,2]
[316011892,1709325083723,-2102.13,0.00022356,2]
[316011893,1709325083732,-1130.38,0.00022356,2]
[316011894,1709325083742,-4965.87,0.00022356,2]
[316011895,1709325083752,-500.0,0.00022356,2]
[316011896,1709325083762,-9922.92,0.00022356,2]
[316011897,1709325083772,-500.0,0.00022356,2]
[316011898,1709325083782,-520.32,0.00022356,2]
[316011899,1709325083792,-500.0,0.00022356,2]
[316011900,1709325083803,-500.0,0.00022356,2]
[316011901,1709325083813,-500.0,0.00022356,2]
[316011902,1709325083823,-798.06,0.00022356,2]
[316011903,1709325083833,-500.0,0.00022356,2]
[316011904,1709325083842,-730.32,0.00022356,2]
[316011905,1709325083852,-500.0,0.00022356,2]
[316011906,1709325083862,-3463.0,0.00022356,2]
[316011907,1709325083872,-500.0,0.00022356,2]
[316011908,1709325083882,-500.0,0.00022356,2]
[316011909,1709325083893,-1879.42,0.00022356,2]
[316011910,1709325083904,-928.45,0.00022356,2]
[316011911,1709325083915,-500.0,0.00022356,2]
[316011912,1709325083926,-5669.44,0.00022356,2]
[316011913,1709325083936,-1230.85,0.00022356,2]
[316011914,1709325083947,-500.0,0.00022356,2]
[316011915,1709325083957,-2980.76,0.00022356,2]
[316011916,1709325083968,-500.0,0.00022356,2]
[316011917,1709325083979,-1281.68,0.00022356,2]
[316011918,1709325083989,-500.0,0.00022356,2]
[316011919,1709325084000,-500.0,0.00022356,2]
[316011920,1709325084013,-500.0,0.00022356,2]
[316011921,1709325084024,-791.17,0.00022356,2]
[316011922,1709325084035,-8137.03,0.00022356,2]
[316011923,1709325084046,-5463.14,0.00022356,2]
[316011924,1709325084057,-500.0,0.00022356,2]
[316011925,1709325084068,-726.54,0.00022356,2]
[316011926,1709325084080,-9818.2,0.00022356,2]
[316011927,1709325084092,-500.0,0.00022356,2]
[316011928,1709325084102,-988.29,0.00022356,2]
[316011929,1709325084115,-500.0,0.00022356,2]
[316011930,1709325084126,-500.0,0.00022356,2]
[316011931,1709325084137,-500.0,0.00022356,2]
[316011932,1709325084147,-500.0,0.00022356,2]
[316011933,1709325084157,-983.46,0.00022356,2]
[316011934,1709325084169,-619.95663854,0.00022356,2]
[316011935,1709325084179,-2607.72,0.00022356,2]
[316011936,1709325084189,-12050.28,0.00022356,2]
[316011937,1709325084201,-500.0,0.00022356,2]
[316011938,1709325084212,-1744.39,0.00022356,2]
[316011939,1709325084222,-635.35,0.00022356,2]
[316011940,1709325084233,-7772.36,0.00022356,2]
[316011941,1709325084243,-4384.09,0.00022356,2]
[316011942,1709325084254,-757.05,0.00022356,2]
[316011943,1709325084264,-500.0,0.00022356,2]
[316011944,1709325084274,-500.0,0.00022356,2]
[316011945,1709325084285,-842.18,0.00022356,2]
[316011946,1709325084295,-825.49,0.00022356,2]
[316011947,1709325084306,-500.0,0.00022356,2]
[316011948,1709325084316,-500.0,0.00022356,2]
[316011949,1709325084325,-500.0,0.00022356,2]
[316011950,1709325084336,-1346.15,0.00022356,2]
[316011951,1709325084346,-500.0,0.00022356,2]
[316011952,1709325084356,-1430.59,0.00022356,2]
[316011953,1709325084366,-1119.47,0.00022356,2]
[316011954,1709325084376,-2058.71822193,0.00022365,2]
[316011955,1709325084386,-638.05244126,0.00022365,2]
[316011956,1709325084396,-10662.23136102,0.00022365,2]
[316011957,1709325084406,-174.48854064,0.00022365,2]
[316011958,1709325084416,-1147.68598985,0.00022365,2]
[316011959,1709325084425,-169.89,0.00022398,2]
[316011960,1709325084435,-1000.0,0.00022399,2]
[316011961,1709325084446,-10183.74,0.000224,2]
[316011962,1709325084458,-4360.05709236,0.00022406,2]
[316011963,1709325084468,-166.27614995,0.0002242,2]
[316011964,1709325084478,-200.0,0.00022442,2]
[316011965,1709325084488,-800.0,0.00022442,2]
[316011966,1709325084499,-200.0,0.00022442,2]
[316011967,1709325084509,-500.0,0.00022442,2]
[316011968,1709325084520,-200.0,0.00022442,2]
[316011969,1709325084530,-199.05,0.00022443,2]
[316011970,1709325084541,-1000.0,0.00022449,3]
[316011971,1709325084551,-1039.26438544,0.00022449,3]
[316011972,1709325084561,-359.84945608,0.00022449,3]
[316011973,1709325084571,-154.87466563,0.00022449,3]
[316011974,1709325084580,-259.28166177,0.00022449,3]
[316011975,1709325084590,-1000.0,0.00022449,3]
[316011976,1709325084600,-6185.97245148,0.00022449,3]
[316011977,1709325084610,-4199.68856084,0.00022449,3]
[316011978,1709325084620,-1288.61853588,0.00022449,3]
[316011979,1709325084629,-1175.93732562,0.00022449,3]
[316011980,1709325084639,-3362.63621127,0.00022449,3]
[316011981,1709325084648,-10366.72395249,0.00022449,3]
[316011982,1709325084658,-1000.0,0.00022449,3]
[316011983,1709325084668,-1811.38094022,0.00022449,3]
[316011984,1709325084677,-159.44330692,0.00022449,3]
[316011985,1709325084687,-384.65826063,0.00022449,3]
[316011986,1709325084700,-1000.0,0.00022449,3]
[316011987,1709325084710,-437.19164382,0.00022463,2]
[316011988,1709325084720,-194.07007002,0.00022464,2]
[316011989,1709325084730,-500.0,0.00022465,2]
[316011990,1709325084741,-500.0,0.00022465,2]
[316011991,1709325084751,-500.0,0.00022465,2]
[316011992,1709325084760,-500.0,0.00022465,2]
[316011993,1709325084770,-500.0,0.00022465,2]
[316011994,1709325084780,-500.0,0.00022465,2]
[316011995,1709325084790,-500.0,0.00022465,2]
[316011996,1709325084800,-500.0,0.00022465,2]
[316011997,1709325084810,-500.0,0.00022465,2]
[316011998,1709325084820,-500.0,0.00022465,2]
[316011999,1709325084829,-500.0,0.00022465,2]
[316012000,1709325084839,-500.0,0.00022465,2]
[316012001,1709325084849,-500.0,0.00022465,2]
[316012002,1709325084859,-500.0,0.00022465,2]
[316012003,1709325084868,-500.0,0.00022465,2]
[316012004,1709325084877,-500.0,0.00022465,2]
[316012005,1709325084887,-500.0,0.00022465,2]
[316012006,1709325084897,-500.0,0.00022465,2]
[316012007,1709325084906,-500.0,0.00022465,2]
[316012008,1709325084915,-500.0,0.00022465,2]
[316012009,1709325084925,-579.47,0.00022465,2]
[316012010,1709325084935,-500.0,0.00022465,2]
[316012011,1709325084945,-500.0,0.00022465,2]
[316012012,1709325084957,-500.0,0.00022465,2]
[316012013,1709325084968,-500.0,0.00022465,2]
[316012014,1709325084979,-500.0,0.00022465,2]